{"text_format":"3","workbook":"xlsx","n_sheets":4,"sheets":["1. Instructions-Information","2. MARKET BASKET ","3. Market Basket Analysis","5. PAE Request Form"],"not_rendered":{"defined_names":1},"read":"whole","date_system":"1900"}

{"sheet":"1. Instructions-Information","index":0,"n_rows":63,"n_cols":2,"rows_kept":63,"merged":[[0,0,0,1],[1,0,1,1],[2,0,2,1],[7,0,7,1],[8,0,8,1],[10,0,10,1],[19,0,19,1]]}
["Monroe County - -5 Administrative Services and Broadline Distribution "]
["Monroe County  BID ITEM LIST - INSTRUCTIONS AND INFORMATION"]
["Document Tab Explanation"]
["1. Instructions-Information","Explanation of each tab and instructions for completing the pricing portion of Monroe County's RFP for Broadline Distribution"]
["2. MARKET BASKET","The Market Basket is the top 225 items that equates to 75% of the total volume purchases. This is what will be used for the bottom dollar bid determinitation. Product information and pricing should be entered for these items. *Specific details regarding the completion of the Market Basket is below."]
["5. Market Basket Analysis ","This is the analysis form that will be used to enter vendors' pricing and determine award"]
["7. PAE Request Form","Pre-Approved Equals - This is the form that should be submitted to request PAE manufacturer brands."]
["MONROE COUNTY WILL NOT ACCEPT ANY PRODUCTS THAT CONTAIN ADDED TRANS FAT.  MONROE COUNTY INTENDS TO FOLLOW USDA STATE AND FEDERAL MEAL PROGRAM GUIDELINES TO MEET THE SODIUM AND FAT CONTENT AS WELL AS THE WHOLE GRAIN RICH REQUIREMENTS AND SMART SNACK GUIDELINES."]
["Bid Item List & Market Basket Instructions and Information."]
["COLUMN","EXPLANATION"]
["Columns A-H is information provided by MONROE COUNTY. Vendor should complete Columns I-V, as applicable."]
["COLUMN A","Item: Number of line item for requested products"]
["COLUMN B","Category: General category of item being requested"]
["COLUMN C","Sub-Category: More specific category of item being requested"]
["COLUMN D","Product/Description: product description of item being requested. Please note this is for informational purposes to provide the vendor with information of what we are asking for. If Vendor does not have specific pack/serving size, or specific weight/measure, it does not mean Monroe County will not consider award, unless the item does not meet crediting requirements (meat/meat alternate, grain ounce equivilant, etc.)"]
["COLUMN E","Preferred Brand/Manufacturer Number or PAE: Preferred brand or brands of item being requested. If left blank, Monroe County does not have a brand preference."]
["COLUMN F","Meat/Meat Alternate Crediting: USDA Child Nutrition crediting of meat/meat alternate of product."]
["COLUMN G","Grain Credit: USDA Child Nutrition crediting of grain ounce equivalents of product."]
["COLUMN H","Serving Usage: Monroe County's estimated serving usage of items from July 2019 - June 2020. The serving amount is generally 2z for M/Ma, 1Z or 2Z Grain Equivalent, 1/2 Cup for fruits and vegetables."]
["Vendor should complete columns as instructed below:"]
["COLUMN I","Item Description: Enter the item description of the product you are submitting."]
["COLUMN J","Commercial Firm Price: Enter the per-case price of the product you are submitting."]
["COLUMN K","Commercial Fixed Price: Enter the Fixed Fee for Fresh Produce Items that are \"market sensitive\" with fluctuating pricing."]
["COLUMN L","Current Price for Fresh Produce: Enter the current case price for Fresh Produce items that are \"market sensitive.\""]
["COLUMN M","Price Per Serving: This is the per serving price. This will calculate automatically by dividing the case count by the final case cost."]
["COLUMN N","Extended Cost: This is the final Per Serving Cost (Column N) multiplied by the estimated Monroe County usage (column H). This will calculate automatically. The sum of the column \"N - Market Basket items\" is what will be used in the Market Basket Pricing Analysis."]
["COLUMN O","Servings per case: Enter the number of servings, per case"]
["COLUMN P","Distributor Item Code: Enter the distributor item/ordering code"]
["COLUMN Q","Manufacturer Brand: Enter the manufacturer's brand of the item you are submitting."]
["COLUMN R","Manufacturer Item Number: Enter the manufacturer's item number of the item you are submitting."]
["COLUMN S","Serving Size: Enter the serving size of the item"]
["COLUMN T","Crediting Information: Enter the crediting information "]
["COLUMN U","CN Label: Enter Yes for items that have an approved Child Nutrition Label"]
["COLUMN V","Buy American: Can this product be procured following the Buy American Provision?"]
["TERM/ABBREVIATION","DESCRIPTION/EXPLANATION"]
["NP","NATURAL PROPORTION"]
["WG/WGRAIN/WH GR","WHOLE GRAIN"]
["Z EQ/OZ EQ","OUNCE EQUIVALENT"]
["CHICKEN CHUNK","NUGGET STYLE, APPROXIMATELY 4-6 PIECES PER SERVING"]
["CHICKEN BITES","APPROXIMATELY 10 PIECES PER 2Z SERVING"]
["PORCORN CHICKEN","APPROXIMATELY 10-14 PIECES PER 2Z SERVING"]
["IQF","INDIVIDUALLY QUICK FROZEN"]
["PAE","PRE APPROVD EQUAL"]
["WM","WHOLE MUSCLE"]
["SS","SHELF STABLE"]
["IW","INDIVIDUALLY WRAPPED"]
["SAND","SANDWICH"]
["PB OR PBJ","PEANUT BUTTER/PEANUT BUTTER & JELLY"]
["TKY/TRKY","TURKEY"]
["CHX/CKN","CHICKEN"]
["Must Meet at least or Meets","Minimum required crediting. Product may meet more, but not less."]
["W/A","WATER ADDED"]
["BF","BEEF"]
["STFD","STUFFED"]
["WDGE","WEDGE"]
["CH/CHS","CHEESE"]
["PEP/PEPP","PEPPERONI"]
["SLC/SLCD","SLICE/SLICED"]
["DISP","DISPOSABLES"]
["TBLTOP","TABLETOP"]
["CONDMT","CONDIMENT"]
["FR/FRZ/FRZN","FROZEN"]
["FR-VG","FRUIT & VEGETABLE"]

{"sheet":"2. MARKET BASKET ","index":1,"n_rows":226,"n_cols":22,"rows_kept":226}
["Line Item","Category","Sub Category","Product/Description","Preferred Brand/Manufacturer Number or PAE","Meat/Meat Alternate Crediting","Grain Credit","Serving Usage","Item Description","Commerical Firm Price","Commercial Fixed Fee","Current Price Per Case for Fresh Produce","Price Per Serving","Extended Cost (L*H)","Servings per case","Distributor Item Code","Manufacturer Brand","Manufacturer Item Number","Serving Size","Crediting Information","CN Label","Buy American"]
[1,"Meat","Beef","BEEF GRND 81/19 FINE GRIND 6-10#AVG",null,2,null,{"v":107208,"d":"107,208"},{"$nulls":4},{"$f":"SUM(J2/O2)","v":{"$error":"#DIV/0!"}},{"$f":"SUM(H2*M2)","v":{"$error":"#DIV/0!"}}]
[2,"Non-Food","DISP","Napkins, disp, interfolded, 1 ply, white, 6000ct",{"$nulls":3},{"v":43800,"d":"43,800"},{"$nulls":4},{"$error":"#DIV/0!"},{"$error":"#DIV/0!"}]
["c","Frozen","Grain","ROLL PRKRHSE PARBK 90-2Z ","Sister Schuberts",null,2,{"v":95400,"d":"95,400"},{"$nulls":4},{"$error":"#DIV/0!"},{"$error":"#DIV/0!"}]
[4,"Grocery ","Condmt","KETCHUP PKT 1M-9GM"," ",null,null,{"v":5000,"d":"5,000"},{"$nulls":4},{"$error":"#DIV/0!"},{"$error":"#DIV/0!"}]
[5,"Frozen","Grain","BUN HAMB SLCD, WH GR, 4\" Approx 120 ct",null,null,2,{"v":2880,"d":"2,880"},{"$nulls":4},{"$error":"#DIV/0!"},{"$error":"#DIV/0!"}]
[6,"Grocery ","Snack","CHIP NACHO REDC FAT 72-1Z DORITOS","PEPSICO",null,1.5,{"v":7488,"d":"7,488"},{"$nulls":4},{"$error":"#DIV/0!"},{"$error":"#DIV/0!"}]
[7,"Frozen","Grain","BISCUIT STHRN STYL EZ SPLT, DOUGH, Non-Whole Grain, 216-2.2Z","GENERAL MILLS",null,2,{"v":12312,"d":"12,312"},{"$nulls":4},{"$error":"#DIV/0!"},{"$error":"#DIV/0!"}]
[8,"Meat","Entrée","SANDWICH, PB&J GRP WGRAIN, FRZN, Must meet at least 1Z M/MA & 1Z GR EQ","SMUCKERS 5150006960",1,1,{"v":10944,"d":"10,944"},{"$nulls":4},{"$error":"#DIV/0!"},{"$error":"#DIV/0!"}]
[9,"Meat","Chx","CHICKEN PATTY, BREADED, MADE WITH WHOLE MUSCLE, BREAST WITH RIB MEAT, MUST MEET 2 OZ M/MA, CONTAINS SOY","Tyson 10703020928, PILGRIMS, RICH CHICKS, GOLD CREEK\n",2,1,{"v":13200,"d":"13,200"},{"$nulls":4},{"$error":"#DIV/0!"},{"$error":"#DIV/0!"}]
[10,"Frozen","Grain","BUN HAMB SLCD 4\" Approx 120 ct.","AUNT MILLIES",null,2,{"v":12840,"d":"12,840"},{"$nulls":4},{"$error":"#DIV/0!"},{"$error":"#DIV/0!"}]
[11,"Grocery ","Condmt","MUSTARD PKT 500-5.5GM "," ",null,null,{"v":48500,"d":"48,500"},{"$nulls":4},{"$error":"#DIV/0!"},{"$error":"#DIV/0!"}]
[12,"Non-Food","DISP","Spoon,BLK PLAS PSTY 24-40CT ","SMARTSTK",null,null,{"v":220800,"d":"220,800"},{"$nulls":4},{"$error":"#DIV/0!"},{"$error":"#DIV/0!"}]
[13,"Grocery ","Dry","SHORTENING LIQ SOY CLR FRY 35#",{"$nulls":3},{"v":127120,"d":"127,120"},{"$nulls":4},{"$error":"#DIV/0!"},{"$error":"#DIV/0!"}]
[14,"Meat","Chx","CHICKEN PATTY MINI, BREAKFAST WGR, WHOLE MUSCLE, SUITABLE FOR BISCUIT INSERT, MUST MEET 1 OZ M/MA, 1/2 Z GR EQ","Tyson 10703030928, Gold Creek 792426\n",1,0.5,{"v":5040,"d":"5,040"},{"$nulls":4},{"$error":"#DIV/0!"},{"$error":"#DIV/0!"}]
[15,"Frozen","Grain","BISCUIT BTRMLK EZ SPLT, Pre-baked, 120-2.25Z ","GENERAL MILLS",null,2,{"v":2880,"d":"2,880"},{"$nulls":4},{"$error":"#DIV/0!"},{"$error":"#DIV/0!"}]
[16,"Frozen","Grain","ROLL YEAST SWEET 120-1.5Z SISSCHUB","Sister Schuberts",null,1.5,{"v":78360,"d":"78,360"},{"$nulls":4},{"$error":"#DIV/0!"},{"$error":"#DIV/0!"}]
[17,"Non-Food","DISP ","Forks,BLK PSTY REFILL, 24-40CT ","SMRTSTK",null,null,{"v":293760,"d":"293,760"},{"$nulls":4},{"$error":"#DIV/0!"},{"$error":"#DIV/0!"}]
[18,"Non-Food","DISP ","Gloves, vinyl, large, pwder free 1000ct",{"$nulls":3},{"v":41000,"d":"41,000"},{"$nulls":4},{"$error":"#DIV/0!"},{"$error":"#DIV/0!"}]
[19,"Grocery ","Snack","CHIP COOL RNCH REDC FAT 104-SSZ DORIT","PEPSICO",null,1,{"v":6240,"d":"6,240"},{"$nulls":4},{"$error":"#DIV/0!"},{"$error":"#DIV/0!"}]
[20,"Meat","Pork","SAUSAGE PATTY, PORK, PRECOOKED, LOW SODIUM, Must meet at least 1Z M/MA",null,1,null,{"v":27648,"d":"27,648"},{"$nulls":4},{"$error":"#DIV/0!"},{"$error":"#DIV/0!"}]
[21,"Grocery ","Dry","POTATO, PEARLS, classic,MASHED REAL PREM , add hot water, 12/26Z","IDAHOAN",null,null,{"v":36480,"d":"36,480"},{"$nulls":4},{"$error":"#DIV/0!"},{"$error":"#DIV/0!"}]
[22,"Meat","Pork","HAM, Smoked, Water-Added Buffet Style, Boneless, 10-12 Lb. Average, Fresh, state serving to equal 2Z M/MA serving",null,2,null,{"v":59488,"d":"59,488"},{"$nulls":4},{"$error":"#DIV/0!"},{"$error":"#DIV/0!"}]
[23,"Grocery","Grain","CEREAL LUCKY CHARMS WGRAIN BWL 96CT","GENERAL MILLS",null,1,{"v":9600,"d":"9,600"},{"$nulls":4},{"$error":"#DIV/0!"},{"$error":"#DIV/0!"}]
[24,"Grocery ","Dry","DRESSING RNCH CUP 1Z "," ",null,null,{"v":12000,"d":"12,000"},{"$nulls":4},{"$error":"#DIV/0!"},{"$error":"#DIV/0!"}]
[25,"Frozen","Grain","MUFFIN CHOC/CHOC CHP WGRAIN IW 72-2Z","ARYZTA",null,1,{"v":14760,"d":"14,760"},{"$nulls":4},{"$error":"#DIV/0!"},{"$error":"#DIV/0!"}]
[26,"Non-Food","DISP","Liner, bake pan, 16.5\"x24.5\" Quilon  1000ct","Packer",null,null,{"v":42000,"d":"42,000"},{"$nulls":4},{"$error":"#DIV/0!"},{"$error":"#DIV/0!"}]
[27,"Grocery ","Condmt","SAUCE RNCH DIPN CUP 100-1Z "," ",null,null,{"v":3500,"d":"3,500"},{"$nulls":4},{"$error":"#DIV/0!"},{"$error":"#DIV/0!"}]
[28,"Frozen","Grain","BUN SUB SLCD WGRAIN 5\" 12-8CT GFS","ALPHA BAKING COMPANY",null,2,{"v":2400,"d":"2,400"},{"$nulls":4},{"$error":"#DIV/0!"},{"$error":"#DIV/0!"}]
[29,"FR-VG","Veg-can","BEANS, GREEN CUT Dk green, Blue Lake (no mixed cuts) Grade A, 6/#10",{"$nulls":3},{"v":29808,"d":"29,808"},{"$nulls":4},{"$error":"#DIV/0!"},{"$error":"#DIV/0!"}]
[30,"Bev ","Juice","Juice Apple 100% FZ 72-4Z",{"$nulls":3},{"v":34560,"d":"34,560"},{"$nulls":4},{"$error":"#DIV/0!"},{"$error":"#DIV/0!"}]
[31,"Grocery ","Condmt","KETCHUP PKT LO SOD 1000-9GM"," ",null,null,{"v":242000,"d":"242,000"},{"$nulls":4},{"$error":"#DIV/0!"},{"$error":"#DIV/0!"}]
[32,"Non-Food","DISP ","Container, 3 cmpt, large, foam, hinged, white 150ct",{"$nulls":3},{"v":128550,"d":"128,550"},{"$nulls":4},{"$error":"#DIV/0!"},{"$error":"#DIV/0!"}]
[33,"Grocery","Grain","CEREAL COCOA PUFFS WGRAIN R/S 96CT","GENERAL MILLS",null,1,{"v":7872,"d":"7,872"},{"$nulls":4},{"$error":"#DIV/0!"},{"$error":"#DIV/0!"}]
[34,"Grocery","Grain","CEREAL CINN TOAST R/S BWL 96CT GENM","GENERAL MILLS",null,1,{"v":12384,"d":"12,384"},{"$nulls":4},{"$error":"#DIV/0!"},{"$error":"#DIV/0!"}]
[35,"Grocery ","Condmt","SAUCE BBQ LO SOD DIP CUP 100-1Z"," ",null,null,{"v":16300,"d":"16,300"},{"$nulls":4},{"$error":"#DIV/0!"},{"$error":"#DIV/0!"}]
[36,"Grocery","Grain","RICE MEXICAN FIESTA STYLE 6-26Z ",null,null,"",{"v":5400,"d":"5,400"},{"$nulls":4},{"$error":"#DIV/0!"},{"$error":"#DIV/0!"}]
[37,"Frozen","Grain","DONUT PWDRD MINI IW 72-3Z ","Super Bakery",null,2,{"v":6120,"d":"6,120"},{"$nulls":4},{"$error":"#DIV/0!"},{"$error":"#DIV/0!"}]
[38,"Grocery","Dairy","Sour Cream, Fat Free, Grade A, Single-Serve, Packets, 1Z PKT",{"$nulls":3},{"v":10600,"d":"10,600"},{"$nulls":4},{"$error":"#DIV/0!"},{"$error":"#DIV/0!"}]
[39,"Non-Food","DISP","Tray,school,FM, 5 CMPT, black  500ct",{"$nulls":3},{"v":151000,"d":"151,000"},{"$nulls":4},{"$error":"#DIV/0!"},{"$error":"#DIV/0!"}]
[40,"Non-Food","DISP ","Cup, FM 10 OZ 40-25 CT",{"$nulls":3},{"v":26000,"d":"26,000"},{"$nulls":4},{"$error":"#DIV/0!"},{"$error":"#DIV/0!"}]
[41,"Grocery ","Snack","CHIP TORTL SCOOP BKD 72-.875Z ","PEPSICO",null,1.25,{"v":29880,"d":"29,880"},{"$nulls":4},{"$error":"#DIV/0!"},{"$error":"#DIV/0!"}]
[42,"Grocery","Grain","TOWEL DISH BAR RIBBED 16 X 19 12CT",null,null,1,{"v":6048,"d":"6,048"},{"$nulls":4},{"$error":"#DIV/0!"},{"$error":"#DIV/0!"}]
[43,"Meat","Turkey","TURKEY ROAST, BREAST, BONELESS, SKIN-ON, RAW, COOK-IN-BAG ",null,2,null,{"v":292448,"d":"292,448"},{"$nulls":4},{"$error":"#DIV/0!"},{"$error":"#DIV/0!"}]
[44,"Frozen","Grain","MUFFIN BLUEB WGRAIN IW 72-2Z ","ARYZTA",null,1,{"v":6408,"d":"6,408"},{"$nulls":4},{"$error":"#DIV/0!"},{"$error":"#DIV/0!"}]
[45,"Grocery","Grain","PASTRY POP-TART WGRAIN STRAWB 120-1CT","KELLOGG",null,1,{"v":6240,"d":"6,240"},{"$nulls":4},{"$error":"#DIV/0!"},{"$error":"#DIV/0!"}]
[46,"Grocery ","Condmt","SYRUP PANCK MAPL CUP 100-1.5Z "," ",null,null,{"v":17200,"d":"17,200"},{"$nulls":4},{"$error":"#DIV/0!"},{"$error":"#DIV/0!"}]
[47,"Grocery","Grain","PASTA SPAGHETTI 10\" 2-10# ",null,null,"",{"v":7680,"d":"7,680"},{"$nulls":4},{"$error":"#DIV/0!"},{"$error":"#DIV/0!"}]
[48,"Bev ","Juice","Juice Grape 100% 72-4Z FZ",{"$nulls":3},{"v":12960,"d":"12,960"},{"$nulls":4},{"$error":"#DIV/0!"},{"$error":"#DIV/0!"}]
[49,"Produce","Fruit","FRESH BANANAS-BANANA TURNING SNGL 150CT 40#",{"$nulls":3},{"v":5250,"d":"5,250"},{"$nulls":4},{"$f":"SUM((K50+L50)/O50)","v":{"$error":"#DIV/0!"}},{"$error":"#DIV/0!"}]
[50,"Meat","Chx","CHICKEN BREAST FILET, BREADED, MADE WITH WHOLE MUSCLE, BREAST WITH RIB MEAT, MUST MEET 2 OZ M/MA","Tyson 10703000928, Pilgrims 7522, Pro View\n60915WG, Gold Creek 792421, Rich Chicks 13440",2,1,{"v":78375,"d":"78,375"},{"$nulls":4},{"$f":"SUM(J51/O51)","v":{"$error":"#DIV/0!"}},{"$error":"#DIV/0!"}]
[51,"Meat","Pizza","PIZZA BF FIESTADA 5' WGRAIN 72-5.44Z",null,2,2,{"v":5976,"d":"5,976"},{"$nulls":4},{"$error":"#DIV/0!"},{"$error":"#DIV/0!"}]
[52,"Grocery","Grain","PASTRY POP-TART WGRAIN STRAWB 72-2CT","KELLOGG",null,2.25,{"v":12888,"d":"12,888"},{"$nulls":4},{"$error":"#DIV/0!"},{"$error":"#DIV/0!"}]
[53,"Grocery ","Snack","CRACKER ASST AMERICAN CLASIC 300-2CT",null,null,1,{"v":12000,"d":"12,000"},{"$nulls":4},{"$error":"#DIV/0!"},{"$error":"#DIV/0!"}]
[54,"Grocery ","Snack","CHIP TORTL RND YEL 5-1.5# ",null,null,1.25,{"v":9720,"d":"9,720"},{"$nulls":4},{"$error":"#DIV/0!"},{"$error":"#DIV/0!"}]
[55,"Grocery","Grain","PASTRY POP-TART WGRAIN CINN 72- 2CT","KELLOGG",null,1.25,{"v":6912,"d":"6,912"},{"$nulls":4},{"$error":"#DIV/0!"},{"$error":"#DIV/0!"}]
[56,"Meat","Misc","Egg Patties, Precooked Round, 3.25 Inch, Scrambled, Frozen, 1 Ounce",null,1,null,{"v":12000,"d":"12,000"},{"$nulls":4},{"$error":"#DIV/0!"},{"$error":"#DIV/0!"}]
[57,"Frozen","Grain","BREADSTICK GARL WGRAIN TWST 54-2.1Z","Coles Quality Foods, Inc.",null,2,{"v":14148,"d":"14,148"},{"$nulls":4},{"$error":"#DIV/0!"},{"$error":"#DIV/0!"}]
[58,"Bev ","Juice","Juice Box Apple, 100%, 40-4.23z SS",{"$nulls":3},{"v":1200,"d":"1,200"},{"$nulls":4},{"$error":"#DIV/0!"},{"$error":"#DIV/0!"}]
[59,"Meat","Chx","CHICKEN BREAST NUG, WGR, MADE WITH WHOLE MUSCLE, STATE SERVING SIZE TO MEET 2 OZ M/MA","Tyson 703620928, PRO VIEW 64030WG, Gold Creek, Pilgrims, RICH CHICKS 54487",2,1,{"v":54560,"d":"54,560"},{"$nulls":4},{"$error":"#DIV/0!"},{"$error":"#DIV/0!"}]
[60,"Frozen","Grain","PANCAKE BLUEBERRY WGRAIN IW 72-3.17Z ","GENERAL MILLS",null,2,{"v":10368,"d":"10,368"},{"$nulls":4},{"$error":"#DIV/0!"},{"$error":"#DIV/0!"}]
[61,"FR-VG","Fruit-Can","PEARS, SLICED Packed in Fruit Juice Grade A/Fancy, 6/#10",{"$nulls":3},{"v":11088,"d":"11,088"},{"$nulls":4},{"$error":"#DIV/0!"},{"$error":"#DIV/0!"}]
[62,"FR-VG","Veg-can","TOMATO DCD I/JCE MW 6/#10",{"$nulls":3},{"v":7632,"d":"7,632"},{"$nulls":4},{"$error":"#DIV/0!"},{"$error":"#DIV/0!"}]
[63,"Frozen","Grain","DOUGH BISC HMSTYL 216-2.5Z ","PILLSBURY, GENERAL MILLS, RICH",null,2,{"v":123984,"d":"123,984"},{"$nulls":4},{"$error":"#DIV/0!"},{"$error":"#DIV/0!"}]
[64,"Frozen","Grain","ROLL MINI CINNIS, Fully Baked, Frozen, IW 72-2.29Z ",null,null,2,{"v":6912,"d":"6,912"},{"$nulls":4},{"$error":"#DIV/0!"},{"$error":"#DIV/0!"}]
[65,"Frozen","Grain","ROLL CINN WGRAIN IW 144-2.7Z","Sister Schuberts",null,1.5,{"v":7632,"d":"7,632"},{"$nulls":4},{"$error":"#DIV/0!"},{"$f":"SUM(H66*M66)","v":{"$error":"#DIV/0!"}}]
[66,"FR-VG","Veg-Frzn","French Fries, JOJO JR SEASONED, Bakeable, Frozen, 6/5LB",{"$nulls":3},{"v":70080,"d":"70,080"},{"$nulls":4},{"$error":"#DIV/0!"},{"$error":"#DIV/0!"}]
[67,"Meat","Pork","PORK PULLED BBQ, SMOKED, SEMI DRY, PRECOOKED, FRZN 4/5#","BYRN, BROOKWD",2,null,{"v":87360,"d":"87,360"},{"$nulls":4},{"$error":"#DIV/0!"},{"$error":"#DIV/0!"}]
[68,"Meat","Pizza","PIZZA, PEPPERONI, SLCD WGRAIN ",null,2,2,{"v":11070,"d":"11,070"},{"$nulls":4},{"$error":"#DIV/0!"},{"$error":"#DIV/0!"}]
[69,"Grocery","Grain","PASTRY POP-TART WGRAIN FUDG 72-2CT","KELLOGG",null,2.5,{"v":3784,"d":"3,784"},{"$nulls":4},{"$error":"#DIV/0!"},{"$error":"#DIV/0!"}]
[70,"FR-VG","Fruit-Can","APPLESAUCE, STRAWBERRY NATURAL FLAVORED, Single Serve, Must meet 1/2 cup fruit,  72/ 4.5Z cups",{"$nulls":3},{"v":3384,"d":"3,384"},{"$nulls":4},{"$error":"#DIV/0!"},{"$error":"#DIV/0!"}]
[71,"Frozen","Grain","BUN HOT DOG WHEAT WHL 12-12CT GFS","AUNT MILLIES",null,2,{"v":4464,"d":"4,464"},{"$nulls":4},{"$error":"#DIV/0!"},{"$error":"#DIV/0!"}]
[72,"Grocery","Grain","CEREAL FROOT LOOPS R/S BWL 96-1Z KELL","KELLOGG",null,1,{"v":8448,"d":"8,448"},{"$nulls":4},{"$error":"#DIV/0!"},{"$error":"#DIV/0!"}]
[73,"Grocery ","Condmt","JELLY ASSORTED 200-.5Z "," ",null,null,{"v":13400,"d":"13,400"},{"$nulls":4},{"$error":"#DIV/0!"},{"$error":"#DIV/0!"}]
[74,"Grocery ","Condmt","MAYONNAISE PKT 200-12GM "," ",null,null,{"v":33200,"d":"33,200"},{"$nulls":4},{"$error":"#DIV/0!"},{"$error":"#DIV/0!"}]
[75,"Produce","Veg","BROCCOLI CAULIFLOWER-BROCCOLI FLORET REG CUT 4-3# ",{"$nulls":3},{"v":4368,"d":"4,368"},{"$nulls":4},{"$f":"SUM((K76+L76)/O76)","v":{"$error":"#DIV/0!"}},{"$error":"#DIV/0!"}]
[76,"Meat","Beef","BEEF, PATTY, CHARBROILED 100% BEEF, PRECOOKED, Must meet at least 2.25Z M/MA","ADVANCEDPIERRE/TYSON, INTEGRATED, DON LEE, JTM, MAIDRITE",2.25,null,{"v":7344,"d":"7,344"},{"$nulls":4},{"$f":"SUM(J77/O77)","v":{"$error":"#DIV/0!"}},{"$error":"#DIV/0!"}]
[77,"Frozen","Grain","BUN HOT DOG SLCD 5.75\" 12-12CT GFS","AUNT MILLIES",null,2,{"v":8784,"d":"8,784"},{"$nulls":4},{"$error":"#DIV/0!"},{"$error":"#DIV/0!"}]
[78,"Grocery ","Condmt","SAUCE CHS NACHO DLX 6-10 "," ",null,null,{"v":82680,"d":"82,680"},{"$nulls":4},{"$error":"#DIV/0!"},{"$error":"#DIV/0!"}]
[79,"Frozen","Grain","PASTRY APPL FILLD IW 72-2.29Z ","GENERAL MILLS",null,2,{"v":7560,"d":"7,560"},{"$nulls":4},{"$error":"#DIV/0!"},{"$error":"#DIV/0!"}]
[80,"Frozen","Grain","BUN HAMB MINI SLCD 2.5\" 8-24CT GFS","AUNT MILLIES",null,1,{"v":4032,"d":"4,032"},{"$nulls":4},{"$error":"#DIV/0!"},{"$error":"#DIV/0!"}]
[81,"Non-Food","DISP","Tray,school, FM, 5 CMPT,white, envirofm  500ct","D&W",null,null,{"v":151000,"d":"151,000"},{"$nulls":4},{"$error":"#DIV/0!"},{"$error":"#DIV/0!"}]
[82,"Frozen","Grain","BREAD GARL TST SLC WGRAIN 12-12CT","Coles Quality Foods, Inc.",null,1,{"v":10368,"d":"10,368"},{"$nulls":4},{"$error":"#DIV/0!"},{"$error":"#DIV/0!"}]
[83,"Bev ","Juice","Juice Box Fruit Punch 100% 40 4.23 Z",{"$nulls":3},{"v":10320,"d":"10,320"},{"$nulls":4},{"$error":"#DIV/0!"},{"$error":"#DIV/0!"}]
[84,"Grocery ","Snack","TREAT RICE KRISPIE WGRAIN 80CT","KELLOGG",null,1,{"v":1920,"d":"1,920"},{"$nulls":4},{"$error":"#DIV/0!"},{"$error":"#DIV/0!"}]
[85,"Non-Food","DISP ","Bowl,fm, 10z, squat, white, 1000ct","Dart",null,null,{"v":27000,"d":"27,000"},{"$nulls":4},{"$error":"#DIV/0!"},{"$error":"#DIV/0!"}]
[86,"Grocery ","Condmt","SAUCE HNY MSTRD CUP 120-1Z "," ",null,null,{"v":15960,"d":"15,960"},{"$nulls":4},{"$error":"#DIV/0!"},{"$error":"#DIV/0!"}]
[87,"Grocery ","Condmt","MARGARINE SLD 30-1# "," ",null,null,{"v":3630,"d":"3,630"},{"$nulls":4},{"$error":"#DIV/0!"},{"$error":"#DIV/0!"}]
[88,"Grocery ","Snack","CHIP HARV CHED 104-SSV SUNCHIP","PEPSICO",null,1.25,{"v":4576,"d":"4,576"},{"$nulls":4},{"$error":"#DIV/0!"},{"$error":"#DIV/0!"}]
[89,"Meat","Chx","CHICKEN, POPCORN STYLE, NATURAL PROPORTION, WGR, STATE SERVING SIZE TO MEET 2 OZ M/MA","TYSON 10703680928, PILGRIMS 110452, GOLDCREEK 791493, RICH CHICKS 54409",2,1,{"v":9760,"d":"9,760"},{"$nulls":4},{"$error":"#DIV/0!"},{"$error":"#DIV/0!"}]
[90,"FR-VG","Fruit-Can","APPLESAUCE, CINNAMON, NATURAL FLAVORED, Single Serve, Must meet 1/2 cup fruit,  72/ 4.5Z cups",{"$nulls":3},{"v":17424,"d":"17,424"},{"$nulls":4},{"$error":"#DIV/0!"},{"$error":"#DIV/0!"}]
[91,"Frozen","Grain","DONUT CHOC MINI IW 72-3.3Z ","Super Bakery",null,2,{"v":5544,"d":"5,544"},{"$nulls":4},{"$error":"#DIV/0!"},{"$error":"#DIV/0!"}]
[92,"FR-VG","Veg. Frz","POTATOES, TOTS OR PUFFS, Frozen, 6/5LB","McCain",null,null,{"v":19800,"d":"19,800"},{"$nulls":4},{"$error":"#DIV/0!"},{"$error":"#DIV/0!"}]
[93,"Produce","Veg","CARROTS-CARROT BABY WHL CLEANED 12-2# RSS",{"$nulls":3},{"v":2976,"d":"2,976"},{"$nulls":4},{"$f":"SUM((K94+L94)/O94)","v":{"$error":"#DIV/0!"}},{"$error":"#DIV/0!"}]
[94,"Frozen","Grain","PANCAKE MINI CONFET 72-3.03Z ","KELLOGG",null,2,{"v":5328,"d":"5,328"},{"$nulls":4},{"$f":"SUM(J95/O95)","v":{"$error":"#DIV/0!"}},{"$error":"#DIV/0!"}]
[95,"Frozen","Grain","PASTRY CHRY FILLD IW 72-2.29Z ","GENERAL MILLS",null,2,{"v":2376,"d":"2,376"},{"$nulls":4},{"$error":"#DIV/0!"},{"$error":"#DIV/0!"}]
[96,"FR-VG","Fruit-Can","PEACHES, Diced, Packed in Fruit Juice, Grade A, 6/#10",{"$nulls":3},{"v":17856,"d":"17,856"},{"$nulls":4},{"$error":"#DIV/0!"},{"$error":"#DIV/0!"}]
[97,"Grocery","Grain","PASTA ELBOW MACAR 4-5#",null,null,"",{"v":9280,"d":"9,280"},{"$nulls":4},{"$error":"#DIV/0!"},{"$error":"#DIV/0!"}]
[98,"Non-Food","DISP ","Bag, grab n go, 11\"x10\"x3.5\", clear, 500 ct","Command",null,null,{"v":15000,"d":"15,000"},{"$nulls":4},{"$error":"#DIV/0!"},{"$error":"#DIV/0!"}]
[99,"Non-Food","DISP ","Gloves,vinyl. medium, pwder free  1000ct",{"$nulls":3},{"v":40000,"d":"40,000"},{"$nulls":4},{"$error":"#DIV/0!"},{"$error":"#DIV/0!"}]
[100,"Grocery ","Snack","CRACKER CHEEZ-IT STYLE WGRAIN IW 175-.75Z",null,null,1,{"v":3675,"d":"3,675"},{"$nulls":4},{"$error":"#DIV/0!"},{"$error":"#DIV/0!"}]
[101,"Grocery ","Dry","PICKLE DILL SLCD HAMB 2900CT 5GAL "," ",null,null,{"v":12900,"d":"12,900"},{"$nulls":4},{"$error":"#DIV/0!"},{"$error":"#DIV/0!"}]
[102,"Frozen","Grain","BAGEL MINI STRAWB CRM CHS IW 72-2.43Z",null,null,2,{"v":7416,"d":"7,416"},{"$nulls":4},{"$error":"#DIV/0!"},{"$error":"#DIV/0!"}]
[103,"Frozen","Grain","BREAD WGRAIN HONEY WHT, FROZEN, SLICED 16-24Z ",null,null,1,{"v":15552,"d":"15,552"},{"$nulls":4},{"$error":"#DIV/0!"},{"$error":"#DIV/0!"}]
[104,"Meat","Chx","CHICKENS, DICED 1/2\", 60%WHT CKD 2-5# GCHC",null,2,null,{"v":4160,"d":"4,160"},{"$nulls":4},{"$error":"#DIV/0!"},{"$error":"#DIV/0!"}]
[105,"FR-VG","Fruit-Can","PINEAPPLE TIDBITS Packed in own juice Grade A, 4Z cup, must equal 1/2 cup fruit,",{"$nulls":3},{"v":21783,"d":"21,783"},{"$nulls":4},{"$error":"#DIV/0!"},{"$error":"#DIV/0!"}]
[106,"FR-VG","Veg. Frz","CORN, WHOLE KERNEL Grade A , 6-10# IQF",{"$nulls":3},{"v":5904,"d":"5,904"},{"$nulls":4},{"$error":"#DIV/0!"},{"$error":"#DIV/0!"}]
[107,"FR-VG","Veg-can","BEANS, PINTO Packed in brine, Grade A, 6/#10",{"$nulls":3},{"v":20448,"d":"20,448"},{"$nulls":4},{"$error":"#DIV/0!"},{"$error":"#DIV/0!"}]
[108,"Bev ","Juice","Juice Orange/PINEAP 100% FZ 72-4 Z",{"$nulls":3},{"v":2448,"d":"2,448"},{"$nulls":4},{"$error":"#DIV/0!"},{"$error":"#DIV/0!"}]
[109,"Meat","Chx","CHICKEN BREAST CHUNKS, WGR, NATURAL PROPORTION, STATE SERVING SIZE TO MEET 2 OZ M/MA","TYSON 10021550928,10703640928\nPILGRIMS, GOLD CREEK",2,1,{"v":7200,"d":"7,200"},{"$nulls":4},{"$error":"#DIV/0!"},{"$error":"#DIV/0!"}]
[110,"Frozen","Grain","DOUGH CKY CARNIVAL WGRAIN 240-1.5Z","ARYZTA",null,1,{"v":4560,"d":"4,560"},{"$nulls":4},{"$error":"#DIV/0!"},{"$error":"#DIV/0!"}]
[111,"Grocery","Grain","PASTRY POP-TART WGRAIN BLUEBRY 120-1CT","KELLOGG",null,1.25,{"v":6960,"d":"6,960"},{"$nulls":4},{"$error":"#DIV/0!"},{"$error":"#DIV/0!"}]
[112,"FR-VG","Fruit-Can","ORANGES, Mandarin, in juice 6/#10 Cans, Grade A, Unit",{"$nulls":3},{"v":10224,"d":"10,224"},{"$nulls":4},{"$error":"#DIV/0!"},{"$error":"#DIV/0!"}]
[113,"Grocery ","Snack","CHIP TORTL RND R/F 64-1.45Z ","PEPSICO",null,2,{"v":3904,"d":"3,904"},{"$nulls":4},{"$error":"#DIV/0!"},{"$error":"#DIV/0!"}]
[114,"Grocery ","Condmt","SAUCE MARINARA 6-10"," ",null,null,{"v":30051,"d":"30,051"},{"$nulls":4},{"$error":"#DIV/0!"},{"$error":"#DIV/0!"}]
[115,"Frozen","Grain","MUFFIN DBL CHOC WGRAIN IW 48-2Z ","OTIS",null,1,{"v":1248,"d":"1,248"},{"$nulls":4},{"$error":"#DIV/0!"},{"$error":"#DIV/0!"}]
[116,"Frozen","Grain","BUN HAMB WHLWHE 3.5\" R/SOD 10-12CT","AUNT MILLIES",null,1.5,{"v":65760,"d":"65,760"},{"$nulls":4},{"$error":"#DIV/0!"},{"$error":"#DIV/0!"}]
[117,"Non-Food","DISP ","Bleach,germicidal, 6/1gal","Array",null,null,{"v":3712,"d":"3,712"},{"$nulls":4},{"$error":"#DIV/0!"},{"$error":"#DIV/0!"}]
[118,"Meat","Brdstk ","CHEESE STICK BITES, WHOLE GRAIN, MOZZARELLA CHEESE STUFFED, SERVING SIZE TO EQUAL 2 M/MA & 2Z GRAIN EQ.","Wild Mike's 11003",2,2,{"v":120960,"d":"120,960"},{"$nulls":4},{"$error":"#DIV/0!"},{"$error":"#DIV/0!"}]
[119,"Meat","Pizza","PIZZA, BREAKFAST, TOMATO SAUCE, BEEF OR PORK SAUSAGE, WGRAIN ","CONAGRA 7738712562, SCHWANS, TONY ROBERTS, NARDONES, WILD MIKES",1,1,{"v":4608,"d":"4,608"},{"$nulls":4},{"$error":"#DIV/0!"},{"$error":"#DIV/0!"}]
[120,"Frozen","Grain","PANCAKE MINI MAPL IW 72-3.03Z ","KELLOGGS",null,2,{"v":3888,"d":"3,888"},{"$nulls":4},{"$error":"#DIV/0!"},{"$error":"#DIV/0!"}]
[121,"Grocery ","Dry","DRESSING MIX RNCH 18-3.2Z ",{"$nulls":3},{"v":126720,"d":"126,720"},{"$nulls":4},{"$error":"#DIV/0!"},{"$error":"#DIV/0!"}]
[122,"Frozen","Grain","DONUT RING WGRAIN GLZ IW 80-2.5Z","Super Bakery",null,2,{"v":11920,"d":"11,920"},{"$nulls":4},{"$error":"#DIV/0!"},{"$error":"#DIV/0!"}]
[123,"Meat","Beef","BEEF STEAK CHICKEN FRIED, BREADED, CKD, Must meet at least 1z Meat/Meat Alt","ADVANCEPIERRE 10000006226, Don Lee, JTM",1,null,{"v":5454,"d":"5,454"},{"$nulls":4},{"$error":"#DIV/0!"},{"$error":"#DIV/0!"}]
[124,"Grocery ","Snack","SNACK FRT ROLLUP HOT COLORS 96-.5Z",{"$nulls":3},{"v":2688,"d":"2,688"},{"$nulls":4},{"$error":"#DIV/0!"},{"$error":"#DIV/0!"}]
[125,"Frozen","Grain","MUFFIN BLUEBERRY WGRAIN IW 48-2Z ","SARA LEE",null,1,{"v":5280,"d":"5,280"},{"$nulls":4},{"$error":"#DIV/0!"},{"$error":"#DIV/0!"}]
[126,"Frozen","Grain","BREAD BANANA IW 70-3.4Z ","Super Bakery",null,2,{"v":2450,"d":"2,450"},{"$nulls":4},{"$error":"#DIV/0!"},{"$error":"#DIV/0!"}]
[127,"Grocery ","Condmt","KETCHUP CAN 29% XTHK 6-10"," ",null,null,{"v":12420,"d":"12,420"},{"$nulls":4},{"$error":"#DIV/0!"},{"$error":"#DIV/0!"}]
[128,"Bev ","Juice","Juice Orange 100% Fresh 72-4 Z",{"$nulls":3},{"v":8928,"d":"8,928"},{"$nulls":4},{"$error":"#DIV/0!"},{"$error":"#DIV/0!"}]
[129,"Non-Food","DISP","TOAST TEXAS APPLE CINN IW 96-3/3Z",null,null,2,{"v":5088,"d":"5,088"},{"$nulls":4},{"$error":"#DIV/0!"},{"$f":"SUM(H130*M130)","v":{"$error":"#DIV/0!"}}]
[130,"Non-Food","DISP","Apron Plastic Econ WHT 100CT FDHND",{"$nulls":3},{"v":2700,"d":"2,700"},{"$nulls":4},{"$error":"#DIV/0!"},{"$error":"#DIV/0!"}]
[131,"Meat","PORK","BACON CKD THN SLCD 3-100CT ",{"$nulls":3},{"v":11550,"d":"11,550"},{"$nulls":4},{"$error":"#DIV/0!"},{"$error":"#DIV/0!"}]
[132,"Meat","PORK","BACON CKD RND 192CT ","HORMEL",null,null,{"v":21696,"d":"21,696"},{"$nulls":4},{"$error":"#DIV/0!"},{"$error":"#DIV/0!"}]
[133,"Frozen","Grain","BAGEL MINI CINN CRM CHS IW 72-2.43Z",null,null,2,{"v":2520,"d":"2,520"},{"$nulls":4},{"$error":"#DIV/0!"},{"$error":"#DIV/0!"}]
[134,"GROCERY","Grain","BAR, CEREAL, NUTRI-GRAIN APPLE CINN WHGRN",null,null,1,{"v":1440,"d":"1,440"},{"$nulls":4},{"$error":"#DIV/0!"},{"$error":"#DIV/0!"}]
[135,"GROCERY","Grain","BAR, CEREAL, NUTRI-GRAIN BLUEBERRY WHGRN",null,null,1,{"v":1104,"d":"1,104"},{"$nulls":4},{"$error":"#DIV/0!"},{"$error":"#DIV/0!"}]
[136,"GROCERY","Grain","BAR, CEREAL, NUTRI-GRAIN STRAWBERRY WHGRN",null,null,1,{"v":2592,"d":"2,592"},{"$nulls":4},{"$error":"#DIV/0!"},{"$error":"#DIV/0!"}]
[137,"GROCERY","Grain","BAR, CEREAL CINN TST WG 96 1.42Z",null,null,1,{"v":2880,"d":"2,880"},{"$nulls":4},{"$error":"#DIV/0!"},{"$error":"#DIV/0!"}]
[138,"GROCERY","Grain","BAR, CEREAL COCOPUFF WG 96 1.42Z",null,null,1,{"v":3456,"d":"3,456"},{"$nulls":4},{"$error":"#DIV/0!"},{"$error":"#DIV/0!"}]
[139,"GROCERY","Grain","BAR, CEREAL GOLDEN GRHM WG 96 1.42Z",null,null,1,{"v":2112,"d":"2,112"},{"$nulls":4},{"$error":"#DIV/0!"},{"$error":"#DIV/0!"}]
[140,"GROCERY","Grain","BAR, CEREAL TRIX WG 96 1.42Z",null,null,1,{"v":3840,"d":"3,840"},{"$nulls":4},{"$error":"#DIV/0!"},{"$error":"#DIV/0!"}]
[141,"GROCERY","Condmt","BASE, CHIX NO ADDED MSG SHELF-STABEL 6-1#",{"$nulls":3},{"v":2304,"d":"2,304"},{"$nulls":4},{"$error":"#DIV/0!"},{"$error":"#DIV/0!"}]
[142,"FR-VG","Veg-can","BEANS, CHILI MEX STYLE 6/#10",{"$nulls":3},{"v":3168,"d":"3,168"},{"$nulls":4},{"$error":"#DIV/0!"},{"$error":"#DIV/0!"}]
[143,"FR-VG","Veg-can","BEANS, REFRIED VEGTAR LO SOD, Grade A, 6-26.25Z",{"$nulls":3},{"v":9648,"d":"9,648"},{"$nulls":4},{"$error":"#DIV/0!"},{"$error":"#DIV/0!"}]
[144,"Meat","Beef","BEEF, PATTY, 5/# 80/20 15#  Must meet at least 2.25Z M/MA",null,2.25,null,{"v":28152,"d":"28,152"},{"$nulls":4},{"$error":"#DIV/0!"},{"$error":"#DIV/0!"}]
[145,"Produce","Veg","CARROTS SLICED MED 6-10 ",{"$nulls":3},{"v":5616,"d":"5,616"},{"$nulls":4},{"$f":"SUM((K146+L146)/O146)","v":{"$error":"#DIV/0!"}},{"$error":"#DIV/0!"}]
[146,"Non-Food","DISP","CARTON FREN FRY SML ASPIRE 4-250 ",{"$nulls":3},{"v":28000,"d":"28,000"},{"$nulls":4},{"$f":"SUM((K147+L147)/O147)","v":{"$error":"#DIV/0!"}},{"$error":"#DIV/0!"}]
[147,"Grocery","Grain","CEREAL TRIX R/S BWL 96-1Z KELL","KELLOGG",null,1,{"v":3072,"d":"3,072"},{"$nulls":4},{"$f":"SUM(J148/O148)","v":{"$error":"#DIV/0!"}},{"$error":"#DIV/0!"}]
[148,"Grocery","Dairy","Cheese, CHEDDAR SHREDDED FIN 4-5#",null,1,null,{"v":10240,"d":"10,240"},{"$nulls":4},{"$error":"#DIV/0!"},{"$error":"#DIV/0!"}]
[149,"Grocery","Dairy","Cheese,MOZZ SHREDDED FIN 4-5#",null,1,null,{"v":14240,"d":"14,240"},{"$nulls":4},{"$error":"#DIV/0!"},{"$error":"#DIV/0!"}]
[150,"Meat","Chx","CHICKEN PATTY HOT SPCY, BREADED, MADE WITH WHOLE MUSCLE, BREAST WITH RIB MEAT, MUST MEET 2 OZ M/MA, CONTAINS SOY","Tyson 10703020928, PILGRIMS, RICH CHICKS, GOLD CREEK\n",2,1,{"v":1665,"d":"1,665"},{"$nulls":4},{"$error":"#DIV/0!"},{"$error":"#DIV/0!"}]
[151,"Grocery ","Snack","CHIP GARDEN SALSA 104-SSV SUNCHIP","PEPSICO",null,1.25,{"v":2496,"d":"2,496"},{"$nulls":4},{"$error":"#DIV/0!"},{"$error":"#DIV/0!"}]
[152,"Grocery ","Snack","CHIP POT BBQ 104- SSV  ","LAYS",null,2,{"v":12792,"d":"12,792"},{"$nulls":4},{"$error":"#DIV/0!"},{"$error":"#DIV/0!"}]
[153,"Grocery ","Snack","CHIP POT RIDG 104- SSV  ","LAYS",null,2,{"v":10608,"d":"10,608"},{"$nulls":4},{"$error":"#DIV/0!"},{"$error":"#DIV/0!"}]
[154,"Grocery ","Snack","CHIP CORN FRITOS 64 - 2OZ ","LAYS",null,2,{"v":6144,"d":"6,144"},{"$nulls":4},{"$error":"#DIV/0!"},{"$error":"#DIV/0!"}]
[155,"GROCERY",null,"COFFEE, LT RST MASTER BLEND 42-1.5Z",{"$nulls":3},{"v":1050,"d":"1,050"},{"$nulls":4},{"$error":"#DIV/0!"},{"$error":"#DIV/0!"}]
[156,"Non-Food","DISP ","Container,8INCH PLASTIC CONTAINER, CLEAR, HINGED, POLYSTYRENE, 100 CT PACKAGE, 2/CASE",{"$nulls":3},{"v":4400,"d":"4,400"},{"$nulls":4},{"$error":"#DIV/0!"},{"$error":"#DIV/0!"}]
[157,"FROZEN","Grain","COOKIE, CHOC CHIP, INW FROZEN 1 OZ 144CT",{"$nulls":3},{"v":4464,"d":"4,464"}]
[158,"Meat","Entrée","CORN DOG MINI  WGRAIN, Must meet at least 2Z M/MA & 2Z GR EQ","FOSTER FARMS, Hillshire Brands, JTM, House of Raeford, ",2,2,{"v":4360,"d":"4,360"},{"$nulls":4},{"$f":"SUM(J159/O159)","v":{"$error":"#DIV/0!"}},{"$f":"SUM(H159*M159)","v":{"$error":"#DIV/0!"}}]
[159,"FR-VG","Veg. Frz","CORN, COB EARS 2.75\" 96 CT ",{"$nulls":3},{"v":7968,"d":"7,968"},{"$nulls":4},{"$error":"#DIV/0!"},{"$error":"#DIV/0!"}]
[160,"FR-VG","Veg. Frz","CORN, CUT IQF 30#",{"$nulls":3},{"v":24120,"d":"24,120"},{"$nulls":4},{"$error":"#DIV/0!"},{"$error":"#DIV/0!"}]
[161,"Grocery ","Snack","CRACKER GRHM TEDDY CINN 150-.75OZ",null,null,1,{"v":6150,"d":"6,150"},{"$nulls":4},{"$error":"#DIV/0!"},{"$error":"#DIV/0!"}]
[162,"Non-Food","DISP ","Cup, PLASTIC CLEAR 9 OZ 15-65 CT",{"$nulls":3},{"v":20475,"d":"20,475"},{"$nulls":4},{"$error":"#DIV/0!"},{"$error":"#DIV/0!"}]
[163,"Grocery ","Dry","DRESSING FRENCH HNY PKT 120-1.5Z MARZ",{"$nulls":3},{"v":5040,"d":"5,040"},{"$nulls":4},{"$error":"#DIV/0!"},{"$error":"#DIV/0!"}]
[164,"Grocery ","Dry","DRESSING ITAL FF  PKT 60-1.5Z MARZ",{"$nulls":3},{"v":2640,"d":"2,640"},{"$nulls":4},{"$error":"#DIV/0!"},{"$error":"#DIV/0!"}]
[165,"Meat","Misc","Egg HARD COOKED PEELED 12/12CT",{"$nulls":3},{"v":15840,"d":"15,840"},{"$nulls":4},{"$error":"#DIV/0!"},{"$error":"#DIV/0!"}]
[166,"Meat","Misc","Egg  SCRMBD CKD BTR 12-1.85#",{"$nulls":3},{"v":37170,"d":"37,170"},{"$nulls":4},{"$error":"#DIV/0!"},{"$error":"#DIV/0!"}]
[167,"Non-Food","DISP ","Film Cutter, Bx 24 x 2000 1 ct",{"$nulls":3},{"v":70965,"d":"70,965"},{"$nulls":4},{"$error":"#DIV/0!"},{"$error":"#DIV/0!"}]
[168,"Meat","Beef","Franks All Beef 10# 2-5#",{"$nulls":3},{"v":19040,"d":"19,040"},{"$nulls":4},{"$error":"#DIV/0!"},{"$error":"#DIV/0!"}]
[169,"Frozen","Grain","FRENCH TST MINI ORIGINAL",{"$nulls":3},{"v":2496,"d":"2,496"},{"$nulls":4},{"$error":"#DIV/0!"},{"$error":"#DIV/0!"}]
[170,"FROZEN","Grain","FRENCH TST MINI CINNAMON",{"$nulls":3},{"v":1512,"d":"1,512"},{"$nulls":4},{"$error":"#DIV/0!"},{"$error":"#DIV/0!"}]
[171,"FROZEN","Grain","FRENCH TST STIX WGRAIN 300-.867Z",{"$nulls":3},{"v":8100,"d":"8,100"},{"$nulls":4},{"$error":"#DIV/0!"},{"$error":"#DIV/0!"}]
[172,"FR-VG","Veg-Frzn","French Fries,1/2' C/C OVEN SEAS CRSPY, Bakeable, Frozen, 6/5LB",{"$nulls":3},{"v":6600,"d":"6,600"},{"$nulls":4},{"$error":"#DIV/0!"},{"$error":"#DIV/0!"}]
[173,"FR-VG","Veg-Frzn","French Fries, 38' R/C LNG FCY GRD A, Frozen, 6/5LB",{"$nulls":3},{"v":34800,"d":"34,800"},{"$nulls":4},{"$error":"#DIV/0!"},{"$error":"#DIV/0!"}]
[174,"FR-VG","Veg-Frzn","French Fries, WAFFLE, Frozen, 6/4.5LB",{"$nulls":3},{"v":22320,"d":"22,320"},{"$nulls":4},{"$error":"#DIV/0!"},{"$error":"#DIV/0!"}]
[175,"FR-VG","Veg-Frzn","French Fries, SPRIRAL SEAS CRSPY, Frozen, 6/4LB",{"$nulls":3},{"v":15720,"d":"15,720"},{"$nulls":4},{"$error":"#DIV/0!"},{"$error":"#DIV/0!"}]
[176,"FR-VG","Veg-Frzn","French Fries, TWISTED SEASON ORIG, Frozen, 6/4LB",{"$nulls":3},{"v":6840,"d":"6,840"},{"$nulls":4},{"$error":"#DIV/0!"},{"$error":"#DIV/0!"}]
[177,"FR-VG","Veg-Frzn","French Fries,WEDGE RANCH, Bakeable, Frozen, 6/5LB",{"$nulls":3},{"v":23280,"d":"23,280"},{"$nulls":4},{"$error":"#DIV/0!"},{"$error":"#DIV/0!"}]
[178,"FR-VG","Veg-Frzn","FRUIT COCTAIL IN JCE 6/10#",{"$nulls":3},{"v":4608,"d":"4,608"},{"$nulls":4},{"$error":"#DIV/0!"},{"$error":"#DIV/0!"}]
[179,"Non-Food","DISP ","Gloves,vinyl. xlarge, pwder free  1000ct",{"$nulls":3},{"v":11000,"d":"11,000"},{"$nulls":4},{"$error":"#DIV/0!"},{"$error":"#DIV/0!"}]
[180,"Grocery","Sauce","Gravy Mix, BISC PRPRD , 6-27Z",{"$nulls":3},{"v":40320,"d":"40,320"},{"$nulls":4},{"$error":"#DIV/0!"},{"$error":"#DIV/0!"}]
[181,"Grocery","Sauce","Gravy Mix, BROWN, 12/15Z",{"$nulls":3},{"v":15903,"d":"15,903"},{"$nulls":4},{"$error":"#DIV/0!"},{"$error":"#DIV/0!"}]
[182,"Meat","Pork","Ham dcd w/a 1/4 3-4#",null,2,null,{"v":4032,"d":"4,032"},{"$nulls":4},{"$error":"#DIV/0!"},{"$error":"#DIV/0!"}]
[183,"FR-VG","Veg. Frz","HASHBROWN PTY TRIANGEL 6-5#",{"$nulls":3},{"v":42240,"d":"42,240"}]
[184,"Grocery ","Condmt","MAYONNAISE H/D 4-1 GAL"," ",null,null,{"v":31232,"d":"31,232"},{"$nulls":4},{"$f":"SUM(J185/O185)","v":{"$error":"#DIV/0!"}},{"$f":"SUM(H185*M185)","v":{"$error":"#DIV/0!"}}]
[185,"Frozen","Grain","MUFFIN BAN WGRAIN WGRAIN IW 72-2Z ","ARYZTA",null,1,{"v":8784,"d":"8,784"},{"$nulls":4},{"$f":"SUM(J186/O186)","v":{"$error":"#DIV/0!"}},{"$f":"SUM(H186*M186)","v":{"$error":"#DIV/0!"}}]
[186,"GROCERY","Grain","OATS, QUICK HOT CEREAL 12-42 Z",null,null,1,{"v":3696,"d":"3,696"}]
[187,"FR-VEG","FROZEN","OKRA BRD HVY 4-5#",{"$nulls":3},{"v":17360,"d":"17,360"}]
[188,"FR-VG","VEG-CAN","PEAS GREEN IQF, Grade A, 6/#10",{"$nulls":3},{"v":15552,"d":"15,552"},{"$nulls":4},{"$f":"SUM(J189/O189)","v":{"$error":"#DIV/0!"}},{"$f":"SUM(H189*M189)","v":{"$error":"#DIV/0!"}}]
[189,"Meat","COOLER","PEPPERONI SLCD 14-16/Z 2-5# 2z serving",null,1.5,null,{"v":3808,"d":"3,808"}]
[190,"GROCERY","DRY","PEPPERS BAN RING MILD 4-1GAL",{"$nulls":3},{"v":9728,"d":"9,728"}]
[191,"Meat","Pizza","PIZZA CHEESE SLCD 4 X 6 WGRAIN 50/50 ",null,2,2,{"v":9864,"d":"9,864"},{"$nulls":4},{"$f":"SUM(J192/O192)","v":{"$error":"#DIV/0!"}},{"$f":"SUM(H192*M192)","v":{"$error":"#DIV/0!"}}]
[192,"Grocery ","Dry","POTATO, PEARLS, classic,BUTTERY MASHED POTATOES , add hot water, 12/28Z","Basic American Foods",null,null,{"v":36480,"d":"36,480"},{"$nulls":4},{"$error":"#DIV/0!"},{"$error":"#DIV/0!"}]
[193,"Grocery","Dry","Potatoes SLCD 6-10",{"$nulls":3},{"v":10512,"d":"10,512"},{"$nulls":4},{"$error":"#DIV/0!"},{"$error":"#DIV/0!"}]
[194,"Grocery","Dry","Potatoes WHL SMALL 100-120ct  6-10",{"$nulls":3},{"v":3696,"d":"3,696"},{"$nulls":4},{"$error":"#DIV/0!"},{"$error":"#DIV/0!"}]
[195,"FR-VG","Veg. Frz","POTATOES ROUNDS COIN 6-5#","McCain",null,null,{"v":6720,"d":"6,720"},{"$nulls":4},{"$error":"#DIV/0!"},{"$error":"#DIV/0!"}]
[196,"FR-VG","Veg. Frz","POTATOES,BABY BAKERS WHL 6-2.5# TSTWRKS","McCain",null,null,{"v":2560,"d":"2,560"},{"$nulls":4},{"$error":"#DIV/0!"},{"$error":"#DIV/0!"}]
[197,"FR-VG","Veg. Frz","POTATOES,smiles 26/, Frozen, 6/4LB","McCain",null,null,{"v":6396,"d":"6,396"},{"$nulls":4},{"$error":"#DIV/0!"},{"$error":"#DIV/0!"}]
[198,"Non-Food","DISP","RINSE AID DSHMCH CRYSTDRI 4-1GAL ARRY",{"$nulls":3},{"v":5632,"d":"5,632"}]
[199,"Grocery ","Condmt","SAUCE SWEET & SOUR CUP 100-1Z "," ",null,null,{"v":3000,"d":"3,000"},{"$nulls":4},{"$f":"SUM(J200/O200)","v":{"$error":"#DIV/0!"}},{"$f":"SUM(H200*M200)","v":{"$error":"#DIV/0!"}}]
[200,"Grocery ","Condmt","SAUCE MARINARADIPN CUP 84-2.5Z REDG"," ",null,null,{"v":10164,"d":"10,164"},{"$nulls":4},{"$error":"#DIV/0!"},{"$error":"#DIV/0!"}]
[201,"Grocery","VEG-CAN","SAUCE SLOPPY JOE 4-10# MANWICH",{"$nulls":3},{"v":5040,"d":"5,040"},{"$nulls":4},{"$error":"#DIV/0!"},{"$error":"#DIV/0!"}]
[202,"Grocery","VEG-CAN","SAUCE SPAGHETTI 6-10#",{"$nulls":3},{"v":5472,"d":"5,472"},{"$nulls":4},{"$error":"#DIV/0!"},{"$error":"#DIV/0!"}]
[203,"Grocery ","VEG-CAN","SAUCE TACO MILD PKT 200-9GM"," ",null,null,{"v":7400,"d":"7,400"},{"$nulls":4},{"$error":"#DIV/0!"},{"$error":"#DIV/0!"}]
[204,"Grocery ","Condmt","SAUCE TOMATO MW 6-10"," ",null,null,{"v":3456,"d":"3,456"},{"$nulls":4},{"$error":"#DIV/0!"},{"$error":"#DIV/0!"}]
[205,"Meat","Pork","SAUSAGE PATTY, PORK,RAW HMSTYLE, 96- 2Z Must meet at least 1Z M/MA",null,1,null,{"v":37344,"d":"37,344"},{"$nulls":4},{"$error":"#DIV/0!"},{"$error":"#DIV/0!"}]
[206,"Grocery ","Dry","SEASONING, CHILI MIX 6-5.7Z ","LAWR",null,null,{"v":4173,"d":"4,173"},{"$nulls":4},{"$error":"#DIV/0!"},{"$error":"#DIV/0!"}]
[207,"Grocery ","Dry","SEASONING FAJITA MIX 6-8.9Z ","LAWR",null,null,{"v":3128,"d":"3,128"},{"$nulls":4},{"$error":"#DIV/0!"},{"$error":"#DIV/0!"}]
[208,"Grocery ","Dry","SEASONING Taco mix 6-9z ",{"$nulls":3},{"v":1904,"d":"1,904"},{"$nulls":4},{"$error":"#DIV/0!"},{"$error":"#DIV/0!"}]
[209,"Grocery ","Dry","SEASONING SALT NO MSG 5#",{"$nulls":3},{"v":1840,"d":"1,840"},{"$nulls":4},{"$error":"#DIV/0!"},{"$error":"#DIV/0!"}]
[210,"Frozen","FRUIT","SLUSHI STRAWB-KW 84-4.4Z","SIDEKICKS",null,null,{"v":3528,"d":"3,528"},{"$nulls":4},{"$error":"#DIV/0!"},{"$error":"#DIV/0!"}]
[211,"Grocery","DRY","SOUP CRM OF CHICKEN 12-5","CAMPBELL FOODSERVICE",null,null,{"v":63600,"d":"63,600"},{"$nulls":4},{"$error":"#DIV/0!"},{"$error":"#DIV/0!"}]
[212,"Grocery","DRY","SPICE, GARLIC POWDER 6# ",{"$nulls":3},{"v":2784,"d":"2,784"},{"$nulls":4},{"$error":"#DIV/0!"},{"$error":"#DIV/0!"}]
[213,"Grocery","DRY","SPICE, ONION POWDER 19Z",{"$nulls":3},418,{"$nulls":4},{"$error":"#DIV/0!"},{"$error":"#DIV/0!"}]
[214,"Grocery","DRY","SPICE PEPPER BLK REG FIN GRIND",{"$nulls":3},{"v":2496,"d":"2,496"},{"$nulls":4},{"$error":"#DIV/0!"},{"$error":"#DIV/0!"}]
[215,"Grocery","DRY","STUFFING MIX CHIX FLEX 6-48Z","STVTOP",null,null,{"v":16800,"d":"16,800"},{"$nulls":4},{"$error":"#DIV/0!"},{"$error":"#DIV/0!"}]
[216,"Grocery","DRY","SUGAR CANE GRANUL #50",{"$nulls":3},{"v":31200,"d":"31,200"},{"$nulls":4},{"$error":"#DIV/0!"},{"$error":"#DIV/0!"}]
[217,"Grocery","DRY","TEA BAG ICED 1Z=1GAL 96-1Z",{"$nulls":3},{"v":2016,"d":"2,016"},{"$nulls":4},{"$error":"#DIV/0!"},{"$error":"#DIV/0!"}]
[218,"Meat","Turkey","TURKEY HAM DCD CKD 2/10#",null,2,null,170,{"$nulls":4},{"$error":"#DIV/0!"},{"$error":"#DIV/0!"}]
[219,"Frozen","Grain","WAFFLE DUTCH WGRAIN 5' 48-2.93Z ",null,null,2,{"v":14160,"d":"14,160"},{"$nulls":4},{"$error":"#DIV/0!"},{"$error":"#DIV/0!"}]
[220,"Frozen","Grain","WAFFLE MINI MAPLE 72-2.65Z",null,null,2,{"v":5256,"d":"5,256"},{"$nulls":4},{"$error":"#DIV/0!"},{"$error":"#DIV/0!"}]
[221,"Frozen","Grain","WAFFLE MINI BLBRY WGRAIN  72-2.47Z",null,null,2,{"v":7560,"d":"7,560"},{"$nulls":4},{"$error":"#DIV/0!"},{"$error":"#DIV/0!"}]
[222,"Grocery","DRY","WATER Spring Alpin 48-8FLZ",{"$nulls":3},{"v":13008,"d":"13,008"},{"$nulls":4},{"$error":"#DIV/0!"},{"$error":"#DIV/0!"}]
[223,"Grocery","DRY","Water Spring Alpin 35-16.9oz",{"$nulls":3},{"v":2975,"d":"2,975"},{"$nulls":4},{"$error":"#DIV/0!"},{"$error":"#DIV/0!"}]
[224,"Grocery","Dairy","YOGURT, STRAWB TUBE 2Z-6-16CT",null,1,null,{"v":16416,"d":"16,416"},{"$nulls":4},{"$error":"#DIV/0!"},{"$error":"#DIV/0!"}]
[225,"Grocery","Dairy","YOUGUT VAR PK STRAW/VAN CRMY 48-4Z",null,1,null,{"v":5856,"d":"5,856"},{"$nulls":4},{"$error":"#DIV/0!"},{"$error":"#DIV/0!"}]

{"sheet":"3. Market Basket Analysis","index":2,"n_rows":5,"n_cols":5,"rows_kept":5}
["Monroe County Market Basket Analysis","Vendor A","Vendor B","Vendor C","Vendor D"]
["Bottom Line Cost of Market Basket Items"]
["Grand Total - Market Basket Fee (to be used in computing total awarded points for Market Basket Proposal)",{"$f":"SUM(B2:B2)","v":0},{"$f":"SUM(C2:C2)","v":0},{"$f":"SUM(D2:D2)","v":0},{"$f":"SUM(E2:E2)","v":0}]
[]
["Market Basket Score = Maximum Points (40) x ($ low bid/$ bid being evaluated*)"]

{"sheet":"5. PAE Request Form","index":3,"n_rows":2,"n_cols":12,"rows_kept":2}
["Category","Line Number","Description","Manufacturer Name","Manufacturer No","Meat/MA Crediting","Grain Crediting","Serving Size","Calories Per Serving","Sodium Per Serving","CN Label","Additional Comments"]
["Meat",62,"chicken nugget","Crispy-Chik",123456,2,1,"5ea./2.5z",280,310,"Yes","Example"]